bitfinex/quotes_SOLUSD_20241022
["timestamp","ask_amount","ask_price","bid_price","bid_amount"]
[1729555202900,30.0,166.33,166.26,23.776884]
[1729555204356,30.0,166.33,166.25,16.5569]
[1729555206165,30.0,166.33,166.26,23.776884]
[1729555206473,30.0,166.33,166.29,17.3823267]
[1729555207357,22.7773,166.4,166.29,17.3823267]
[1729555207581,20.0,166.38,166.29,17.3823267]
[1729555207880,4.46090921,166.37,166.29,17.3823267]
[1729555208186,20.0,166.39,166.29,17.3823267]
[1729555208365,20.0,166.38,166.29,17.3823267]
[1729555208764,20.0,166.38,166.3,23.776884]
[1729555208972,20.0,166.39,166.3,23.776884]
[1729555209376,22.7773,166.4,166.3,23.776884]
[1729555209580,4.46124919,166.39,166.3,23.776884]
[1729555209779,22.7773,166.4,166.3,23.776884]
[1729555209981,4.46098637,166.39,166.3,23.776884]
[1729555210181,22.7773,166.4,166.3,23.776884]
[1729555210364,4.46143023,166.39,166.3,23.776884]
[1729555210688,20.0,166.39,166.3,23.776884]
[1729555214695,20.0,166.39,166.32,23.776884]
[1729555214901,20.0,166.43,166.32,23.776884]
[1729555215065,4.46332577,166.42,166.32,23.776884]
[1729555215389,4.46332577,166.41,166.32,23.776884]
[1729555215589,21.9491,166.44,166.34,23.776884]
[1729555215763,21.9491,166.44,166.33,17.3823267]
[1729555215764,4.46417463,166.43,166.36,23.776884]
[1729555215965,38.18267556,166.48,166.36,23.776884]
[1729555216161,4.46471218,166.47,166.36,23.776884]
[1729555216392,38.18267556,166.48,166.36,23.776884]
[1729555216566,4.46414196,166.46,166.36,23.776884]
[1729555216773,4.46414196,166.45,166.36,23.776884]
[1729555216964,38.18267556,166.48,166.36,23.776884]
[1729555217188,4.46422848,166.47,166.36,23.776884]
[1729555217393,4.46422848,166.46,166.36,23.776884]
[1729555217583,4.46422848,166.45,166.36,23.776884]
[1729555217771,56.33267556,166.48,166.31,15.7967]
[1729555217968,26.40728998,166.46,166.31,15.7967]
[1729555218184,24.46358715,166.45,166.31,15.7967]
[1729555218387,24.46358715,166.44,166.31,15.7967]
[1729555218692,24.46358715,166.43,166.32,17.3823267]
[1729555218985,24.46358715,166.42,166.32,17.3823267]
[1729555219163,20.0,166.42,166.32,17.3823267]
[1729555219364,20.0,166.45,166.33,23.776884]
[1729555219679,4.46385878,166.44,166.33,23.776884]
[1729555219876,20.0,166.45,166.32,17.3823267]
[1729555219877,4.46385878,166.43,166.34,17.3823267]
[1729555220064,20.0,166.46,166.34,17.3823267]
[1729555220271,4.46403089,166.45,166.34,17.3823267]
[1729555220479,4.46403089,166.44,166.35,23.776884]
[1729555220675,20.0,166.47,166.35,23.776884]
[1729555220868,4.46450282,166.46,166.34,23.776884]
[1729555221072,4.46450282,166.45,166.34,23.776884]
[1729555221269,20.0,166.47,166.34,23.776884]
[1729555221270,4.46450282,166.44,166.34,23.776884]
[1729555221494,20.1,166.47,166.34,23.776884]
[1729555221697,4.46467401,166.46,166.34,23.776884]
[1729555221870,4.46467401,166.45,166.34,23.776884]
[1729555222077,4.46467401,166.44,166.34,23.776884]
[1729555222298,20.0,166.47,166.34,23.776884]
[1729555222590,4.46388769,166.46,166.34,23.776884]
[1729555222778,4.46388769,166.45,166.34,23.776884]
[1729555223092,4.46388769,166.44,166.34,23.776884]
[1729555223292,20.0,166.47,166.34,23.776884]
[1729555223482,4.46733997,166.46,166.34,23.776884]
[1729555223674,4.46733997,166.45,166.34,23.776884]
[1729555223875,4.46733997,166.44,166.34,23.776884]
[1729555224076,20.0,166.47,166.34,23.776884]
[1729555224482,4.46869241,166.46,166.34,23.776884]
[1729555224772,4.46869241,166.45,166.34,23.776884]
[1729555225089,4.46869241,166.44,166.34,23.776884]
[1729555225389,20.0,166.47,166.34,23.776884]
[1729555225580,4.467514,166.46,166.34,23.776884]
[1729555225782,4.467514,166.45,166.34,23.776884]
[1729555225991,4.467514,166.44,166.34,23.776884]
[1729555226167,20.0,166.47,166.34,23.776884]
[1729555226373,4.46817907,166.46,166.36,11.11135875]
[1729555226692,4.46817907,166.45,166.36,11.11135875]
[1729555226998,4.46817907,166.44,166.36,11.11135875]
[1729555227196,20.0,166.47,166.38,11.11135875]
[1729555227580,4.46822334,166.46,166.38,11.11135875]
[1729555227670,4.46822334,166.45,166.38,11.11135875]
[1729555227869,20.0,166.47,166.38,11.11135875]
[1729555228081,4.46796979,166.46,166.38,11.11135875]
[1729555228280,20.0,166.47,166.38,11.11135875]
[1729555228899,20.0,166.47,166.37,23.776884]
[1729555229101,20.0,166.47,166.37,34.88824275]
[1729555231307,20.0,166.47,166.39,11.11135875]
[1729555232483,15.2981,166.48,166.41,11.11135875]
[1729555232688,6.0074,166.46,166.41,11.11135875]
[1729555233883,44.42461287,166.52,166.41,11.11135875]
[1729555234072,6.0071,166.47,166.43,11.11135875]
[1729555234276,6.0068,166.48,166.43,11.11135875]
[1729555234492,6.0068,166.48,166.44,23.776884]
[1729555235489,6.0064,166.49,166.44,23.776884]
[1729555235692,1.04465225,166.58,166.48,23.776884]
[1729555235897,6.0048,166.54,166.5,11.11135875]
[1729555236191,15.0069,166.59,166.48,34.88824275]
[1729555236703,6.0045,166.54,166.48,34.88824275]
[1729555238286,6.0045,166.54,166.48,23.776884]
[1729555241278,6.0042,166.55,166.48,23.776884]
[1729555241476,21.5377,166.6,166.48,23.776884]
[1729555241477,21.5377,166.6,166.5,23.776884]
[1729555242802,6.0034,166.57,166.5,23.776884]
[1729555243004,6.0031,166.58,166.5,23.776884]
[1729555246697,6.0025,166.6,166.52,23.776884]
[1729555246887,6.0025,166.6,166.52,40.358684]
[1729555248007,6.0021,166.61,166.52,40.358684]
[1729555249016,6.0017,166.62,166.54,23.776884]
[1729555252786,21.8353,166.64,166.53,17.33542754]
[1729555252787,6.0014,166.63,166.56,23.776884]
[1729555254909,6.0023,166.61,166.56,23.776884]
[1729555255119,6.0016,166.62,166.55,23.776884]
[1729555255505,6.0012,166.64,166.55,23.776884]
[1729555255691,22.31,166.68,166.55,23.776884]
[1729555255888,20.0,166.67,166.57,23.776884]
[1729555256297,6.0012,166.64,166.57,23.776884]
[1729555257040,6.0006,166.65,166.57,23.776884]
[1729555257616,6.0006,166.65,166.56,23.776884]
[1729555258411,20.0,166.67,166.58,11.08125492]
[1729555258593,6.002,166.61,166.56,23.776884]
[1729555258791,6.003,166.59,166.52,27.66305492]
[1729555259402,15.1015,166.65,166.52,27.66305492]
[1729555259403,6.0034,166.58,166.52,16.5818]
[1729555261217,6.0034,166.58,166.53,23.776884]
[1729555261721,6.0027,166.59,166.53,23.776884]
[1729555262317,21.2454,166.62,166.53,23.776884]
[1729555262318,6.0031,166.58,166.53,23.776884]
[1729555262489,6.0027,166.6,166.53,23.776884]
[1729555262711,6.0023,166.61,166.53,23.776884]
[1729555263816,36.8486,166.66,166.54,17.32941619]
[1729555264110,6.0015,166.63,166.55,23.776884]
[1729555264992,6.001,166.64,166.57,23.776884]
[1729555265498,21.8478,166.66,166.53,17.32941619]
[1729555265711,6.0017,166.62,166.53,17.32941619]
[1729555266816,6.0017,166.62,166.54,23.776884]
[1729555266994,6.0012,166.64,166.55,17.32941619]
[1729555267195,6.0009,166.64,166.56,23.776884]
[1729555267622,6.0014,166.63,166.56,23.776884]
[1729555269324,6.0006,166.65,166.58,23.776884]
[1729555270316,6.0003,166.66,166.58,23.776884]
[1729555270718,6.0006,166.65,166.58,23.776884]
[1729555271117,6.0002,166.67,166.58,23.776884]
[1729555272019,6.0002,166.67,166.59,16.2599]
[1729555272324,6.0002,166.67,166.6,23.776884]
[1729555272997,20.0,166.69,166.6,23.776884]
[1729555273202,6.0002,166.66,166.6,23.776884]
[1729555273507,6.0003,166.66,166.6,23.776884]
[1729555273816,20.0,166.69,166.6,23.776884]
[1729555274027,5.9999,166.67,166.6,23.776884]
[1729555276221,20.0,166.69,166.6,23.776884]
[1729555276524,6.0012,166.64,166.55,33.49241619]
[1729555277008,6.0013,166.63,166.55,33.49241619]
[1729555277516,6.0023,166.61,166.55,16.163]
[1729555277824,6.0024,166.6,166.51,33.59231619]
[1729555278126,35.0035,166.63,166.51,16.2629]
[1729555278522,6.003,166.59,166.51,16.2629]
[1729555279722,6.003,166.59,166.52,23.776884]
[1729555279920,35.0035,166.63,166.52,23.776884]
[1729555280125,6.0013,166.63,166.54,23.776884]
[1729555280422,6.0018,166.62,166.57,11.08269544]
[1729555282401,6.0018,166.62,166.54,41.09466016]
[1729555285409,6.0011,166.64,166.54,41.09466016]
[1729555285614,6.0011,166.64,166.57,23.776884]
[1729555285928,6.0013,166.63,166.57,23.776884]
[1729555288107,20.0,166.68,166.57,23.776884]
[1729555288309,21.2727,166.69,166.57,38.948684]
[1729555288527,21.2727,166.69,166.57,15.1718]
[1729555288825,6.0017,166.62,166.58,23.776884]
[1729555289009,6.0013,166.63,166.58,23.776884]
[1729555289726,6.0009,166.65,166.58,23.776884]
[1729555290233,6.0013,166.63,166.58,23.776884]
[1729555290532,6.001,166.64,166.58,23.776884]
[1729555291533,5.9998,166.67,166.58,41.09466016]
[1729555291730,6.0002,166.66,166.58,41.09466016]
[1729555293409,20.0,166.68,166.58,23.776884]
[1729555293632,6.0012,166.64,166.58,23.776884]
[1729555294924,39.39552711,166.69,166.58,23.776884]
[1729555295228,6.0001,166.67,166.58,23.776884]
[1729555302330,6.0001,166.67,166.61,11.07666862]
[1729555304644,21.2727,166.69,166.61,11.07666862]
[1729555304830,5.9995,166.68,166.61,11.07666862]
[1729555305025,5.9999,166.67,166.61,11.07666862]
[1729555316345,6.0009,166.65,166.58,23.776884]
[1729555316549,36.2706,166.69,166.61,11.07666862]
[1729555317430,6.0001,166.67,166.58,23.776884]
[1729555317765,6.0001,166.67,166.61,11.07666862]
[1729555320253,36.2706,166.69,166.57,15.1718]
[1729555320461,48.191184,166.65,166.49,15.3315]
[1729555320750,6.0036,166.57,166.49,26.40816862]
[1729555320965,30.0,166.61,166.51,11.07666862]
[1729555321193,30.0,166.61,166.53,11.07666862]
[1729555321468,30.0,166.61,166.55,11.07666862]
[1729555321935,30.0,166.61,166.58,23.776884]
[1729555322642,30.0,166.61,166.6,23.776884]
[1729555323067,5.9999,166.67,166.6,23.776884]
[1729555323241,6.2174,166.69,166.61,11.07666862]
[1729555323551,30.0,166.62,166.61,34.85355262]
[1729555324065,5.9998,166.68,166.61,34.85355262]
[1729555324234,5.9998,166.68,166.61,23.776884]
[1729555325636,6.2174,166.69,166.61,23.776884]
[1729555325961,5.9995,166.68,166.61,23.776884]
[1729555331566,6.2174,166.69,166.61,23.776884]
[1729555331772,5.9988,166.7,166.62,41.08099091]
[1729555333251,23.12482711,166.72,166.64,17.30410691]
[1729555333467,20.0,166.72,166.61,15.2062]
[1729555333649,14.997,166.7,166.57,15.2062]
[1729555333852,35.2207,166.69,166.57,15.2062]
[1729555334076,30.0,166.63,166.53,15.2062]
[1729555334460,30.0,166.63,166.48,6.37312253]
[1729555334461,20.0,166.62,166.49,15.2062]
[1729555334672,6.003,166.59,166.49,15.2062]
[1729555335072,30.0,166.58,166.49,15.2062]
[1729555335860,30.0,166.58,166.5,23.776884]
[1729555338182,6.0034,166.57,166.5,23.776884]
[1729555338388,30.0,166.56,166.45,16.6137]
[1729555338676,6.0049,166.53,166.45,16.6137]
[1729555338877,6.0061,166.5,166.45,16.6137]
[1729555339073,6.0059,166.51,166.41,17.30410691]
[1729555339272,6.0059,166.51,166.41,16.6137]
[1729555339576,6.0059,166.51,166.41,33.91780691]
[1729555340471,15.6727,166.54,166.41,33.91780691]
[1729555340472,6.0053,166.52,166.41,33.91780691]
[1729555340850,30.0,166.49,166.41,33.91780691]
[1729555341284,30.0,166.49,166.42,23.776884]
[1729555341872,6.0067,166.48,166.37,15.5084]
[1729555342079,30.0,166.47,166.37,15.5084]
[1729555342381,36.0071,166.47,166.37,15.5084]
[1729555342763,30.0,166.47,166.37,15.6084]
[1729555342967,30.0,166.47,166.37,15.5084]
[1729555343170,30.0,166.47,166.37,32.81250691]
[1729555343571,30.0,166.47,166.38,23.776884]
[1729555344386,36.0072,166.47,166.37,15.5084]
[1729555344550,35.9116,166.46,166.33,15.5084]
[1729555344750,6.0093,166.41,166.33,15.5084]
[1729555345078,6.5431,166.44,166.33,15.5084]
[1729555345456,6.0086,166.43,166.33,15.5084]
[1729555345980,6.5431,166.44,166.34,17.30410691]
[1729555346188,6.5431,166.44,166.33,15.5084]
[1729555346487,6.0085,166.43,166.33,15.5084]
[1729555346774,30.0,166.4,166.34,23.776884]
[1729555348372,30.0,166.4,166.34,41.08099091]
[1729555348570,30.0,166.4,166.37,23.776884]
[1729555351278,30.0,166.4,166.3,20.2]
[1729555351472,30.0,166.4,166.34,23.776884]
[1729555351781,6.0089,166.42,166.34,23.776884]
[1729555352358,12.5516,166.44,166.35,17.30410691]
[1729555352554,12.5516,166.44,166.36,23.776884]
[1729555353759,6.5431,166.44,166.36,23.776884]
[1729555353965,6.0088,166.43,166.33,17.30410691]
[1729555354276,6.0088,166.43,166.34,23.776884]
[1729555358064,6.009,166.42,166.34,23.776884]
[1729555358265,30.0,166.39,166.34,23.776884]
[1729555363894,6.0085,166.43,166.34,23.776884]
[1729555366191,6.5431,166.44,166.29,6.47780333]
[1729555366192,15.9116,166.46,166.36,23.776884]
[1729555366521,6.2,166.48,166.42,23.776884]
[1729555376112,6.0064,166.49,166.42,23.776884]
[1729555376421,6.0068,166.48,166.41,23.776884]
[1729555376598,15.9312,166.5,166.4,17.30410691]
[1729555376599,12.6285,166.52,166.44,17.30410691]
[1729555376803,6.0057,166.51,166.44,17.30410691]
[1729555377715,6.623,166.52,166.44,17.30410691]
[1729555377896,6.0056,166.51,166.44,17.30410691]
[1729555379104,6.623,166.52,166.44,17.30410691]
[1729555379504,6.0057,166.51,166.44,17.30410691]
[1729555379818,6.0056,166.51,166.44,17.30410691]
[1729555380328,12.6283,166.52,166.47,11.09563032]
[1729555380488,16.6437,166.54,166.47,11.09563032]
[1729555380697,6.6439,166.57,166.49,11.09563032]
[1729555380995,6.0038,166.56,166.49,11.09563032]
[1729555381202,6.6439,166.57,166.49,11.09563032]
[1729555381517,6.0043,166.55,166.49,11.09563032]
[1729555382201,26.0039,166.56,166.49,11.09563032]
[1729555382617,26.0039,166.56,166.51,11.09563032]
[1729555382804,6.0039,166.56,166.51,11.09563032]
[1729555383002,12.6475,166.57,166.51,11.09563032]
[1729555383419,6.0036,166.57,166.51,11.09563032]
[1729555384001,6.0036,166.57,166.49,15.3328]
[1729555384202,6.0038,166.56,166.51,11.09563032]
[1729555384507,6.0038,166.56,166.5,23.776884]
[1729555388015,6.0031,166.58,166.51,17.32799229]
[1729555388624,22.3499,166.62,166.55,17.32799229]
[1729555388934,16.348,166.62,166.56,23.776884]
[1729555389109,6.0013,166.63,166.56,23.776884]
[1729555390529,6.4229,166.65,166.57,17.32799229]
[1729555390835,6.0009,166.64,166.57,17.32799229]
[1729555391210,5.9995,166.68,166.61,23.776884]
[1729555391410,14.9956,166.72,166.61,23.776884]
[1729555391625,5.9991,166.69,166.61,23.776884]
[1729555392020,5.9991,166.69,166.62,17.32799229]
[1729555392826,21.8764,166.73,166.63,23.776884]
[1729555393530,5.9988,166.7,166.63,23.776884]
[1729555399327,21.8764,166.73,166.57,6.6594]
[1729555399328,6.0013,166.63,166.57,6.6594]
[1729555399545,6.0012,166.64,166.56,33.27209229]
[1729555399710,6.0012,166.64,166.56,15.9441]
[1729555399910,5.9998,166.67,166.56,33.27209229]
[1729555400112,6.0006,166.65,166.56,33.27209229]
[1729555400618,6.0006,166.65,166.57,23.776884]
[1729555401237,6.0002,166.67,166.58,17.32799229]
[1729555401551,6.0002,166.67,166.6,17.32799229]
[1729555402033,5.9994,166.69,166.59,23.776884]
[1729555402336,20.0,166.71,166.61,23.776884]
[1729555402530,6.0021,166.61,166.56,15.9441]
[1729555402829,6.001,166.64,166.56,15.9441]
[1729555403038,6.0006,166.65,166.56,33.27209229]
[1729555403540,5.9998,166.68,166.58,17.32799229]
[1729555403717,5.9995,166.68,166.58,17.32799229]
[1729555404043,5.9995,166.68,166.59,23.776884]
[1729555404332,5.9995,166.68,166.61,23.776884]
[1729555405232,15.9056,166.73,166.62,17.32799229]
[1729555405438,15.9056,166.73,166.64,17.32799229]
[1729555405621,5.9985,166.71,166.64,17.32799229]
[1729555405821,5.998,166.72,166.64,17.32799229]
[1729555406021,5.9987,166.71,166.64,17.32799229]
[1729555406432,5.9989,166.7,166.64,17.32799229]
[1729555409056,5.9989,166.7,166.63,23.776884]
[1729555412551,15.9056,166.73,166.65,23.776884]
[1729555412729,15.9056,166.73,166.64,33.11979229]
[1729555413047,20.0,166.72,166.63,23.776884]
[1729555413344,20.0,166.72,166.6,15.7918]
[1729555413345,6.0011,166.64,166.6,15.7918]
[1729555413547,20.0,166.72,166.6,15.7918]
[1729555413747,6.0009,166.65,166.6,15.7918]
[1729555414425,6.0002,166.66,166.6,15.7918]
[1729555417559,6.0002,166.66,166.59,23.776884]
[1729555419550,6.0009,166.64,166.59,23.776884]
[1729555419762,6.0014,166.63,166.56,15.2972]
[1729555420849,6.001,166.64,166.56,15.2972]
[1729555421365,6.001,166.64,166.57,23.776884]
[1729555422271,36.0173,166.66,166.57,23.776884]
[1729555422646,36.0173,166.66,166.52,15.5365]
[1729555422647,6.0035,166.57,166.52,15.5365]
[1729555422836,20.0,166.6,166.47,21.9944]
[1729555423162,15.6735,166.59,166.47,21.9944]
[1729555423368,6.0049,166.53,166.47,21.9944]
[1729555423747,6.0045,166.54,166.47,21.9944]
[1729555424445,6.0045,166.54,166.48,23.776884]
[1729555424849,6.0034,166.57,166.48,23.776884]
[1729555425154,6.0039,166.56,166.48,23.776884]
[1729555427262,6.0044,166.55,166.48,23.776884]
[1729555427470,6.0045,166.54,166.48,23.776884]
[1729555432574,20.0,166.56,166.44,23.776884]
[1729555433244,6.0057,166.51,166.44,23.776884]
[1729555436951,6.0048,166.54,166.44,23.776884]
[1729555439469,6.0048,166.54,166.46,23.776884]
[1729555439864,20.0,166.56,166.48,23.776884]
[1729555440055,6.0055,166.52,166.43,39.14549229]
[1729555440256,6.0057,166.51,166.43,39.14549229]
[1729555441274,6.0057,166.51,166.44,23.776884]
[1729555442863,6.0066,166.49,166.44,23.776884]
[1729555443269,6.0069,166.48,166.44,23.776884]
[1729555443478,6.0064,166.49,166.44,23.776884]
[1729555443683,15.0132,166.52,166.39,23.0818]
[1729555443873,20.0,166.49,166.39,23.0818]
[1729555444185,6.0077,166.46,166.39,23.0818]
[1729555445078,6.0077,166.46,166.4,23.776884]
[1729555445589,6.0071,166.47,166.4,23.776884]
[1729555445880,6.0059,166.51,166.43,23.776884]
[1729555446066,16.0623,166.53,166.43,23.776884]
[1729555446271,6.0055,166.52,166.43,23.776884]
[1729555446862,6.0047,166.54,166.45,23.776884]
[1729555447169,6.0047,166.54,166.4,17.52799229]
[1729555447170,6.0042,166.55,166.47,23.776884]
[1729555452660,6.0042,166.55,166.48,17.32799229]
[1729555452863,6.0042,166.55,166.49,23.776884]
[1729555453059,16.2493,166.57,166.49,23.776884]
[1729555453060,22.2528,166.57,166.49,23.776884]
[1729555453274,6.2018,166.59,166.51,23.776884]
[1729555453469,6.0037,166.57,166.51,23.776884]
[1729555455588,6.0029,166.59,166.52,17.32799229]
[1729555460699,16.6325,166.61,166.53,23.776884]
[1729555461003,6.0888,166.64,166.56,17.32799229]
[1729555461175,21.8293,166.65,166.57,23.776884]
[1729555461376,21.8293,166.65,166.58,17.32799229]
[1729555461687,6.0011,166.64,166.58,17.32799229]
[1729555462194,15.8287,166.65,166.58,17.32799229]
[1729555462401,6.0013,166.63,166.58,17.32799229]
[1729555463573,21.8296,166.65,166.58,17.32799229]
[1729555463776,6.0009,166.65,166.58,17.32799229]
[1729555463990,20.0,166.67,166.58,17.32799229]
[1729555464187,6.001,166.64,166.58,17.32799229]
[1729555465583,6.5951,166.68,166.59,23.776884]
[1729555465785,6.0006,166.65,166.59,23.776884]
[1729555471809,6.002,166.61,166.54,17.32799229]
[1729555471993,6.0025,166.6,166.52,40.15119229]
[1729555472206,6.0033,166.58,166.52,16.4175]
[1729555472507,16.0707,166.62,166.47,6.2386]
[1729555472508,6.0039,166.56,166.48,15.2993]
[1729555473594,6.0034,166.58,166.48,15.2993]
[1729555473783,16.0707,166.62,166.51,17.32799229]
[1729555473983,6.0011,166.64,166.55,17.32799229]
[1729555474184,6.0013,166.64,166.55,33.26139229]
[1729555474384,6.0016,166.63,166.55,33.26139229]
[1729555474590,6.6515,166.65,166.55,15.9334]
[1729555474912,6.0016,166.63,166.56,23.776884]
[1729555476887,6.6515,166.65,166.55,33.26139229]
[1729555477086,6.0024,166.6,166.54,23.776884]
[1729555478394,6.002,166.61,166.54,23.776884]
[1729555480408,6.002,166.61,166.55,17.32799229]
[1729555483317,6.0027,166.6,166.54,23.776884]
[1729555484815,20.0,166.64,166.54,23.776884]
[1729555485014,6.0021,166.61,166.54,23.776884]
[1729555486114,6.0013,166.63,166.55,17.32799229]
[1729555486413,6.0013,166.63,166.56,23.776884]
[1729555486795,6.002,166.61,166.56,23.776884]
[1729555487220,6.0017,166.62,166.56,23.776884]
[1729555487522,6.0021,166.61,166.56,23.776884]
[1729555496323,6.0021,166.61,166.56,34.86093343]
[1729555496635,6.0021,166.61,166.51,15.9334]
[1729555496636,6.0034,166.58,166.51,27.01744943]
[1729555496812,6.0036,166.57,166.51,11.08404943]
[1729555498029,6.0036,166.57,166.52,23.776884]
[1729555500534,15.3955,166.6,166.51,23.776884]
[1729555501040,6.0039,166.56,166.51,23.776884]
[1729555501717,6.0042,166.55,166.48,17.32971209]
[1729555502519,6.0033,166.58,166.48,17.32971209]
[1729555503253,6.0033,166.58,166.49,23.776884]
[1729555505335,15.3955,166.6,166.49,23.776884]
[1729555505531,6.0043,166.55,166.49,23.776884]
[1729555505840,6.0043,166.55,166.48,17.32971209]
[1729555507229,6.0043,166.55,166.49,23.776884]
[1729555507731,6.0037,166.57,166.49,23.776884]
[1729555508944,15.3955,166.6,166.52,17.32971209]
[1729555509124,6.0024,166.6,166.53,23.776884]
[1729555510121,16.4563,166.64,166.53,23.776884]
[1729555510333,6.0022,166.61,166.53,23.776884]
[1729555510533,6.0025,166.6,166.53,23.776884]
[1729555510933,20.0,166.63,166.47,15.2344]
[1729555511137,6.0036,166.57,166.48,41.10659609]
[1729555515743,15.0042,166.62,166.5,17.32971209]
[1729555515935,6.0027,166.6,166.53,23.776884]
[1729555517018,6.0019,166.62,166.54,32.86391209]
[1729555517219,6.0013,166.63,166.55,23.776884]
[1729555517430,16.4563,166.64,166.55,23.776884]
[1729555517431,10.4709178,166.62,166.55,23.776884]
[1729555517645,6.002,166.62,166.55,23.776884]
[1729555519454,6.0028,166.59,166.53,23.776884]
[1729555520347,6.0028,166.59,166.53,34.8649141]
[1729555521750,6.0028,166.59,166.55,11.0880301]
[1729555524339,20.0,166.63,166.53,23.776884]
[1729555524538,6.0036,166.57,166.51,23.776884]
[1729555526247,6.0036,166.57,166.52,11.0880301]
[1729555528548,20.0,166.63,166.54,11.0880301]
[1729555528745,6.0027,166.6,166.54,11.0880301]
[1729555530346,6.0016,166.62,166.56,11.0880301]
[1729555530531,4.47168272,166.61,166.56,11.0880301]
[1729555530734,6.0009,166.64,166.58,11.0880301]
[1729555530922,10.47371533,166.63,166.54,6.4196]
[1729555531129,4.47198173,166.62,166.53,11.0880301]
[1729555531359,4.47198173,166.61,166.54,23.776884]
[1729555531531,6.0027,166.6,166.53,23.776884]
[1729555532628,6.0027,166.6,166.54,11.0880301]
[1729555533636,6.0018,166.62,166.56,11.0880301]
[1729555534157,6.0014,166.63,166.58,11.0880301]
[1729555534330,4.47300854,166.62,166.58,11.0880301]
[1729555534654,6.0014,166.63,166.58,11.0880301]
[1729555535955,38.49790933,166.68,166.59,23.776884]
[1729555536137,6.0008,166.65,166.6,11.0880301]
[1729555536454,6.0013,166.63,166.57,23.776884]
[1729555536855,6.0018,166.62,166.57,23.776884]
[1729555539358,6.0027,166.6,166.52,15.4026]
[1729555539559,6.5733,166.64,166.52,15.4026]
[1729555539868,24.46749073,166.63,166.54,11.0880301]
[1729555540031,4.46749073,166.62,166.54,11.0880301]
[1729555540239,6.002,166.61,166.54,11.0880301]
[1729555540448,6.0026,166.6,166.54,11.0880301]
[1729555541838,6.0019,166.62,166.56,11.0880301]
[1729555542039,6.002,166.61,166.56,11.0880301]
[1729555542435,6.0017,166.62,166.56,11.0880301]
[1729555543649,6.0021,166.61,166.55,23.776884]
[1729555544362,6.0021,166.61,166.56,11.0880301]
[1729555545058,6.0017,166.62,166.56,11.0880301]
[1729555545261,6.0016,166.63,166.57,23.776884]
[1729555545743,6.001,166.64,166.59,23.776884]
[1729555546141,6.0006,166.65,166.6,11.0880301]
[1729555546754,6.0003,166.66,166.6,16.1648]
[1729555547154,6.0009,166.65,166.57,23.776884]
[1729555547351,6.0009,166.65,166.57,34.8649141]
[1729555547539,14.9981,166.69,166.56,22.6559]
[1729555547540,6.0018,166.62,166.56,22.6559]
[1729555548148,6.0013,166.63,166.57,11.0880301]
[1729555548347,15.0276,166.66,166.57,11.0880301]
[1729555549442,6.0013,166.63,166.57,11.0880301]
[1729555550859,15.0276,166.66,166.58,23.776884]
[1729555551259,6.0013,166.63,166.57,23.776884]
[1729555553668,6.002,166.62,166.57,23.776884]
[1729555553867,21.447,166.66,166.57,23.776884]
[1729555554079,6.0019,166.62,166.57,23.776884]
[1729555554777,6.0023,166.61,166.56,16.1648]
[1729555555678,6.0029,166.59,166.53,23.776884]
[1729555555972,6.0029,166.59,166.52,23.776884]
[1729555557046,6.0029,166.59,166.54,23.776884]
[1729555557472,6.0024,166.6,166.54,23.776884]
[1729555557951,6.0018,166.62,166.57,11.0880301]
[1729555558151,6.0018,166.62,166.55,11.0880301]
[1729555558459,6.0018,166.62,166.56,23.776884]
[1729555564664,6.0018,166.62,166.55,23.776884]
[1729555567679,0.1,166.65,166.51,15.8961]
[1729555567887,30.0001,166.67,166.48,6.2148]
[1729555567888,6.0045,166.55,166.48,6.2148]